[Event "1st FIDE Olympiad DIS 2023"]
[Site "Belgrade"]
[Date "2023.01.30"]
[Round "1.17"]
[White "Mikheev, Stanislav"]
[Black "Soltanov, Serik"]
[Result "1-0"]
[ECO "D45"]
[WhiteElo "2300"]
[BlackElo "2266"]
[Annotator "TA"]
[PlyCount "71"]
[EventDate "2023.01.30"]
[EventType "team-tourn"]
[EventCountry "SRB"]
[SourceTitle "playchess.com"]
[Source "ChessBase"]
[SourceQuality "1"]
[WhiteTeam "IPCA"]
[BlackTeam "Kazakhstan"]
[WhiteTeamCountry "SRB"]
[BlackTeamCountry "KAZ"]
[TimeControl "40/5400+30:1800+30"]

{[%evp 22,71,43,27,39,54,72,58,75,0,0,0,0,-57,-61,-55,-54,-60,-47,-46,-28,-32,-27,-43,-1,-13,12,11,7,19,19,8,33,36,72,60,79,78,76,70,81,72,124,126,206,206,216,208,221,216,220,104]} 1. c4 {[%emt 0:00:06]} c6 {[%emt 0:00:00]} 2. Nf3 {[%emt 0:01:01]} d5 {[%emt 0:00:00]} 3. d4 {[%emt 0:00:50]} Nf6 {[%emt 0:00:03]} 4. Nc3 {[%emt 0:00:45]} e6 {[%emt 0:00:10]} 5. e3 {[%emt 0:01:14]} Nbd7 {[%emt 0:00:06]} 6. Qc2 {[%emt 0:00:20]} Bd6 {[%emt 0:00:12]} 7. b3 {[%emt 0:00:46]} O-O {[%emt 0:00:25]} 8. Be2 {[%emt 0:00:48]} Qe7 {[%emt 0:01:05]} 9. O-O {[%emt 0:01:20]} dxc4 {[%emt 0:00:42]} 10. bxc4 {[%emt 0:00:24]} e5 {[%emt 0:00:30]} 11. Rd1 {[%emt 0:05:05]} Re8 {[%emt 0:02:35]} 12. Rb1 {[%emt 0:01:00]} exd4 {[%emt 0:18:44] D45: Semi-Slav: 5 e3.} 13. exd4 {[%emt 0:00:40] [#]} h6 $146 {[%emt 0:00:30]} ({Predecessor:} 13... Nf8 14. h3 h6 15. Bf1 Qc7 16. c5 Be7 17. Ne5 Bxc5 18. Nxf7 Qxf7 19. dxc5 Be6 20. Rb4 {½-½ Prusikin,M (2560)-Huzman,A (2585) EU-Cup 22nd Fuegen 2006 (5.1)}) 14. Re1 {[%emt 0:12:20]} Nf8 {[%emt 0:09:12] White is slightly better.} 15. c5 {[%emt 0:03:20]} ({White should try} 15. Bd3 $16 Qd8 16. Rxe8 Qxe8 17. Bd2) 15... Bc7 $11 {[%emt 0:01:29]} 16. Bc4 {[%emt 0:07:02]} Be6 {[%emt 0:07:42]} 17. Ba3 {[%emt 0:08:12]} (17. Bd3 $11) 17... Qd7 $15 {[%emt 0:11:00]} 18. Qb3 {[%emt 0:03:47]} Bxc4 {[%emt 0:11:50]} 19. Qxc4 {[%emt 0:00:23]} Rxe1+ {[%emt 0:00:59]} 20. Rxe1 {[%emt 0:00:18]} Re8 {[%emt 0:01:20]} 21. Rxe8 {[%emt 0:10:16]} Qxe8 {[%emt 0:01:03]} 22. g3 {[%emt 0:05:24]} Ng6 {[%emt 0:09:08]} 23. Kg2 {[%emt 0:01:24]} Ne4 {[%emt 0:06:22]} (23... Qd7 {looks sharper.} 24. h3 h5 25. Bc1 h4) 24. Qe2 {[%emt 0:01:25]} Nf6 {[%emt 0:01:04]} 25. Qxe8+ {[%emt 0:03:07]} Nxe8 {[%emt 0:00:05]} 26. d5 {[%emt 0:00:09]} cxd5 {[%emt 0:04:32]} 27. Nxd5 {[%emt 0:00:02]} f6 {[%emt 0:00:49]} 28. Nd4 $1 {[%emt 0:00:32]} Ne5 {[%emt 0:02:27]} 29. f4 {[%emt 0:04:44] White is more active.} Nc4 {[%emt 0:01:47]} 30. Bb4 {[%emt 0:01:10]} Kf7 {[%emt 0:00:55]} 31. Kf3 {[%emt 0:04:15]} Bd8 {[%emt 0:01:03]} (31... g6 $142) 32. Ke4 $16 {[%emt 0:03:53]} Nc7 {[%emt 0:01:48] [#]} (32... g6 $16) 33. Nxc7 $1 $18 {[%emt 0:03:14] White is clearly better.} Bxc7 {[%emt 0:00:08]} 34. Nb5 {[%emt 0:00:06][%csl LRa7,LRc7]} Bb8 {[%emt 0:01:07]} 35. Kd4 {[%emt 0:00:17]} Nb2 {[%emt 0:00:46] [#]} 36. Nc3 {[%emt 0:00:24] Weighted Error Value: White=0.11 (very precise) /Black=0.14 (very precise)} (36. Kd5 $1 $18 {is the precise move to win.}) 1-0

[Event "1st FIDE Olympiad DIS 2023"]
[Site "Belgrade"]
[Date "2023.01.30"]
[Round "1.18"]
[White "Deniz, Ugur"]
[Black "Mate, Balazs"]
[Result "0-1"]
[ECO "B30"]
[WhiteElo "1946"]
[BlackElo "2015"]
[Annotator "TA"]
[PlyCount "92"]
[EventDate "2023.01.30"]
[EventType "team-tourn"]
[EventCountry "SRB"]
[SourceTitle "playchess.com"]
[Source "ChessBase"]
[SourceQuality "1"]
[WhiteTeam "Turkey"]
[BlackTeam "Hungary"]
[WhiteTeamCountry "TUR"]
[BlackTeamCountry "HUN"]
[TimeControl "40/5400+30:1800+30"]

{[%evp 18,92,22,0,13,9,4,18,16,13,14,12,13,0,16,0,2,-81,-79,-74,-72,-83,-76,-94,-84,-125,-79,-98,-41,-41,-30,-30,-21,-21,-16,-46,-35,-37,-25,-39,-31,-43,0,-31,-32,-28,0,0,0,0,0,-31,-33,-62,0,0,0,-70,-41,-118,-113,-118,-98,-94,-154,-146,-108,-329,-307,-283,-270,-248,-242,-12844,-12844,-12845,-12845]} 1. e4 {[%emt 0:00:07]} c5 {[%emt 0:00:14]} 2. Nf3 {[%emt 0:00:49]} Nc6 {[%emt 0:00:02]} 3. Bb5 {[%emt 0:00:51]} e6 {[%emt 0:00:55]} 4. Bxc6 {[%emt 0:02:09]} bxc6 {[%emt 0:02:04]} 5. O-O {[%emt 0:14:37]} Ne7 {[%emt 0:05:19]} 6. b3 {[%emt 0:06:00]} Ng6 {[%emt 0:07:22]} 7. Bb2 {[%emt 0:04:37]} f6 {[%emt 0:08:30]} 8. d3 {[%emt 0:20:54]} Be7 {[%emt 0:00:55]} 9. e5 {[%emt 0:13:11]} O-O {[%emt 0:05:08]} 10. Nbd2 {[%emt 0:00:00]} fxe5 {[%emt 0:02:32] B30: Sicilian: 2...Nc6 3 Bb5, lines without ...g6.} 11. Nxe5 {[%emt 0:00:18]} Nxe5 {[%emt 0:07:23]} 12. Bxe5 {[%emt 0:00:12]} d6 {[%emt 0:00:27] The position is equal.} 13. Bg3 {[%emt 0:01:29]} e5 {[%emt 0:05:34]} 14. Qe2 {[%emt 0:04:23]} Bg5 {[%emt 0:07:39]} 15. Nc4 {[%emt 0:03:26] [#]} Be6 $146 {[%emt 0:05:19]} ({Predecessor:} 15... Bf4 16. Rae1 Be6 17. Bxf4 Rxf4 18. Nxe5 dxe5 19. Qxe5 Rf6 20. Qxc5 Rg6 21. f3 Qb6 22. Qe3 Bh3 23. Rf2 Bxg2 24. Rxg2 Re8 {0-1 Morin,A (2099)-Lapin,P (2198) Krasnoyarsk Marchko Memorial 2016 (3)}) 16. Rae1 {[%emt 0:02:22]} (16. f4 $5 {[%cal Rf4g5]} Bxc4 17. fxg5 $11) 16... Qd7 {[%emt 0:06:28] [#]} 17. Nxe5 {[%emt 0:03:36]} dxe5 $17 {[%emt 0:04:23]} 18. Qxe5 {[%emt 0:00:07]} Bf5 {[%emt 0:01:28]} 19. Qxc5 {[%emt 0:00:08]} Rfe8 {[%emt 0:03:53]} 20. Be5 {[%emt 0:06:14]} Be7 {[%emt 0:01:40] A strong pair of Bishops.} 21. Qc3 {[%emt 0:00:12]} Bf8 {[%emt 0:04:44]} ({Better is} 21... a5 {Threatens to win with ...Bb4.} 22. Re3 (22. Bxg7 $2 Bb4 $17) 22... Bb4 23. Qc4+ Qd5) 22. Re2 {[%emt 0:00:55]} Bd6 {[%emt 0:06:23]} ({Black should try} 22... Bg6 $17 23. Rfe1 a5 24. Qc4+ Qd5 25. Qxd5+ cxd5) 23. Rfe1 $15 {[%emt 0:00:57]} Bxe5 {[%emt 0:01:22]} 24. Rxe5 {[%emt 0:00:09]} Rxe5 {[%emt 0:00:39]} 25. Rxe5 {[%emt 0:00:43]} Re8 {[%emt 0:00:58]} 26. f4 {[%emt 0:01:57]} Rxe5 {[%emt 0:00:46]} 27. Qxe5 {[%emt 0:00:53]} h5 {[%emt 0:02:03]} 28. Kf2 {[%emt 0:04:13]} Bg6 {[%emt 0:02:15]} 29. h3 {[%emt 0:01:14]} Qd8 {[%emt 0:02:48]} 30. f5 {[%emt 0:01:18]} Bf7 {[%emt 0:00:40]} 31. g4 {[%emt 0:01:40]} hxg4 {[%emt 0:00:33]} 32. hxg4 {[%emt 0:00:04]} Qh4+ {[%emt 0:00:48]} 33. Qg3 {[%emt 0:00:10]} Qg5 {[%emt 0:02:01] [#] And now ...Qd2+ would win.} 34. Qb8+ {[%emt 0:00:46]} Kh7 {[%emt 0:00:42]} 35. Qh2+ {[%emt 0:00:11]} Kg8 {[%emt 0:01:11]} (35... Qh6 $1 $15 36. Qxh6+ Kxh6) 36. Qb8+ $11 {[%emt 0:01:17]} Kh7 {[%emt 0:00:12]} 37. Qxa7 {[%emt 0:00:11]} (37. Qh2+ $11 Qh6 38. Qe5) 37... Qf4+ $1 $15 {[%emt 0:01:13]} 38. Ke1 {[%emt 0:00:57]} ({White should play} 38. Ke2 $1 $15 Qxg4+ 39. Kd2 Qxf5 40. a4) 38... Qc1+ $17 {[%emt 0:01:15]} 39. Ke2 {[%emt 0:00:10]} Qxc2+ {[%emt 0:00:19]} 40. Ke3 {[%emt 0:00:08]} Qc1+ {[%emt 0:00:36]} 41. Ke2 {[%emt 0:03:52]} Bd5 {[%emt 0:31:23]} 42. Qe3 $2 {[%emt 0:00:54] White does not recover from this.} (42. Qf2 $17) 42... Qb2+ $19 {[%emt 0:00:00]} 43. Ke1 {[%emt 0:17:40]} Qa1+ {[%emt 0:00:00]} (43... Qxa2 $2 {perishes.} 44. g5 Qa8 45. Kf2 $19) 44. Kf2 {[%emt 0:00:48]} Qxa2+ {[%emt 0:00:00]} 45. Qe2 $2 {[%emt 0:00:19]} (45. Ke1) 45... Qxe2+ {[%emt 0:00:00]} 46. Kxe2 {[%emt 0:00:12]} Kh6 {[%emt 0:00:00] Weighted Error Value: White=0.41/Black=0.13 (very precise)} 0-1

[Event "1st FIDE Olympiad DIS 2023"]
[Site "Belgrade"]
[Date "2023.01.30"]
[Round "1.19"]
[White "Campos, Eugenio"]
[Black "Kozhabekov, Adilkhan"]
[Result "1-0"]
[ECO "D58"]
[WhiteElo "2227"]
[BlackElo "1939"]
[Annotator "TA"]
[PlyCount "121"]
[EventDate "2023.01.30"]
[EventType "team-tourn"]
[EventCountry "SRB"]
[SourceTitle "playchess.com"]
[Source "ChessBase"]
[SourceQuality "1"]
[WhiteTeam "IPCA"]
[BlackTeam "Kazakhstan"]
[WhiteTeamCountry "ANG"]
[BlackTeamCountry "KAZ"]
[TimeControl "40/5400+30:1800+30"]

{[%evp 23,121,10,4,0,0,0,0,0,11,7,14,0,1,0,11,0,0,0,0,0,0,0,1,0,0,0,16,23,48,23,23,23,23,37,29,12,14,8,113,110,114,118,132,119,151,122,141,171,166,135,161,113,221,126,254,232,234,227,351,331,1391,1234,2742,2612,29945,29952,29950,29942,29938,5453,12850,12740,12796,7520,6142,6131,2791,1775,1749,1528,29978,29968,12810,8257,29986,29987,29987,29988,29988,29986,29986,29987,29987,29988,29988,29987,29987,29988,29988,29989]} 1. d4 {[%emt 0:00:14]} Nf6 {[%emt 0:01:04]} 2. c4 {[%emt 0:00:18]} e6 {[%emt 0:04:05]} 3. Nf3 {[%emt 0:01:19]} d5 {[%emt 0:01:23]} 4. Nc3 {[%emt 0:02:31]} Be7 {[%emt 0:01:51]} 5. Bg5 {[%emt 0:01:03]} O-O {[%emt 0:02:48]} 6. e3 {[%emt 0:01:29]} h6 {[%emt 0:02:33]} 7. Bh4 {[%emt 0:00:25]} b6 {[%emt 0:03:12]} 8. Bd3 {[%emt 0:03:24]} Bb7 {[%emt 0:02:28]} 9. O-O {[%emt 0:00:23]} Nbd7 {[%emt 0:03:05]} 10. Qe2 {[%emt 0:01:00]} Ne4 {[%emt 0:16:28]} 11. Bxe7 {[%emt 0:04:14]} Qxe7 {[%emt 0:09:47]} 12. cxd5 {[%emt 0:04:13]} exd5 {[%emt 0:04:24]} 13. Ba6 {[%emt 0:04:42] D58: Queen's Gambit Declined: Tartakower Defence.} Nxc3 {[%emt 0:13:26]} 14. bxc3 {[%emt 0:00:11]} Bxa6 {[%emt 0:01:47]} 15. Qxa6 {[%emt 0:00:08] The position is equal.} Nf6 {[%emt 0:01:59] [#]} 16. c4 $146 {[%emt 0:00:24]} ({Predecessor:} 16. a4 Ne4 17. Qd3 Nd6 18. Ne5 c5 19. dxc5 Qxe5 20. cxd6 Rac8 21. Rfd1 Qxd6 22. c4 {1-0 Lima,V-Pires,T (1813) Paulista-ch Itapetininga 2009 (5.2)}) 16... c5 {[%emt 0:07:53]} 17. Rfc1 {[%emt 0:06:09]} Rfc8 {[%emt 0:07:27]} 18. Rab1 {[%emt 0:05:03]} Qe6 {[%emt 0:04:02]} 19. dxc5 {[%emt 0:06:41]} (19. cxd5 {seems wilder.} Qf5 20. dxc5 Rxc5 21. Nd4) 19... Rxc5 {[%emt 0:00:20]} 20. cxd5 $1 {[%emt 0:02:02]} Rxc1+ {[%emt 0:01:05]} 21. Rxc1 {[%emt 0:00:11]} Qxd5 {[%emt 0:00:47]} 22. h3 {[%emt 0:00:44]} Ne4 {[%emt 0:01:37]} 23. a4 {[%emt 0:04:41][%cal Ba2a4,Ba4a5][%mdl 32]} Nc5 {[%emt 0:01:43][%cal Be4c5,Bc5b3,Bb3c1][%mdl 32]} 24. Qb5 {[%emt 0:00:27]} Qa2 {[%emt 0:00:43] [#]} (24... Qb3 {simplifies} 25. Qxb3 Nxb3 26. Rc3 Nc5) 25. a5 $1 {[%emt 0:09:45]} Nb3 {[%emt 0:01:42]} (25... Qxa5 $2 26. Qxa5 bxa5 27. Rxc5 $18) (25... Qa3 26. Rc2) 26. Qd5 {[%emt 0:04:02]} (26. Rc7 $5 {[%cal Rb5d5]} Nc5 27. Nd4 $14 (27. axb6 axb6 28. Qc6 Rf8 $14)) 26... Nxc1 {[%emt 0:00:47]} 27. Qxa8+ $11 {[%emt 0:01:19][%mdl 4096] Endgame KQN-KQN} Kh7 {[%emt 0:00:04]} 28. axb6 {[%emt 0:01:25]} axb6 {[%emt 0:00:32]} 29. Qc6 {[%emt 0:00:20]} Qb1 {[%emt 0:01:37]} (29... Ne2+ {is interesting.} 30. Kf1 Qb2 31. Qe4+ Kg8) 30. Kh2 {[%emt 0:00:41]} Ne2 {[%emt 0:00:18]} (30... Nd3 $1 $11) 31. Qc4 $1 $16 {[%emt 0:00:17][%csl LRe2,LRf7]} Qd1 {[%emt 0:01:29]} 32. Qxf7 {[%emt 0:00:23]} Qd6+ {[%emt 0:01:09]} 33. g3 {[%emt 0:00:49] Strongly threatening Qb3.} Nc3 {[%emt 0:00:37]} 34. Nd4 {[%emt 0:00:31]} Qf6 {[%emt 0:01:07] Prevents Ne6.} 35. Qxf6 {[%emt 0:01:27]} gxf6 {[%emt 0:00:01] KN-KN} 36. Kg2 {[%emt 0:00:08]} Kg6 {[%emt 0:00:06]} 37. Kf1 {[%emt 0:00:12]} ({Better is} 37. Kf3 $18) 37... Kf7 {[%emt 0:01:02] [#]} (37... Ne4 $16 38. Ke2 h5) 38. Ke1 {[%emt 0:00:07]} (38. f3 $1 $18) 38... h5 {[%emt 0:00:10] This move loses the game for Black.} (38... Ne4 $16 39. Kf1 Kg6) 39. f3 $18 {[%emt 0:00:22]} Nd5 {[%emt 0:00:24]} 40. Kd2 {[%emt 0:00:13]} Kg6 {[%emt 0:00:25]} (40... Ne7 {was necessary.} 41. Kd3 Ng6) 41. h4 {[%emt 0:31:18]} f5 $2 {[%emt 0:30:26] [#]} (41... Nc7 42. Kc3 Na6) 42. Nxf5 $1 {[%emt 0:00:42][%mdl 576] Remove Defender, Decoy} Nc7 {[%emt 0:01:26]} (42... b5 43. e4) 43. Nd4 {[%emt 0:01:00]} Ne8 {[%emt 0:00:31]} 44. e4 {[%emt 0:00:36]} Nd6 {[%emt 0:00:16]} 45. Kd3 {[%emt 0:00:13]} Nf7 {[%emt 0:01:02]} 46. f4 {[%emt 0:00:44][%cal Bf3f4,Bf4f5][%mdl 32] Intending e5 and mate.} Nh6 {[%emt 0:00:11]} 47. e5 {[%emt 0:00:24] White threatens Ke4 and mate.} Ng4 {[%emt 0:00:08]} 48. f5+ {[%emt 0:00:49]} Kf7 {[%emt 0:00:06]} 49. Ke4 {[%emt 0:00:15]} Nf2+ {[%emt 0:00:09]} 50. Kd5 {[%emt 0:00:45]} Nd1 {[%emt 0:01:00]} 51. Kd6 {[%emt 0:00:24] e6+ would kill now.} Nc3 {[%emt 0:01:48]} 52. Kd7 {[%emt 0:00:32]} Ne4 {[%emt 0:01:12]} 53. e6+ {[%emt 0:03:38][%cal Be5e6,Be6e7][%mdl 32]} Kg7 {[%emt 0:00:34]} 54. e7 {[%emt 0:00:39] White mates.} Nf6+ {[%emt 0:00:04]} 55. Kd8 {[%emt 0:00:12]} Kf7 {[%emt 0:00:07]} 56. Nb5 {[%emt 0:01:56]} Ne8 {[%emt 0:00:25]} 57. Nc3 {[%emt 0:00:50]} Ng7 {[%emt 0:00:44]} 58. Ne4 {[%emt 0:01:46]} b5 {[%emt 0:01:15]} 59. Nd6+ {[%emt 0:02:19]} Kf6 {[%emt 0:00:11]} 60. Ne8+ {[%emt 0:00:07]} Nxe8 {[%emt 0:00:53]} 61. Kxe8 {[%emt 0:00:02] Weighted Error Value: White=0.09 (flawless) /Black=0.41} 1-0

[Event "1st FIDE Olympiad DIS 2023"]
[Site "Belgrade"]
[Date "2023.01.30"]
[Round "1.19"]
[White "Paal-Szucs, Attila"]
[Black "Donmez, Unal"]
[Result "1-0"]
[ECO "C61"]
[WhiteElo "2141"]
[BlackElo "1816"]
[Annotator "TA"]
[PlyCount "61"]
[EventDate "2023.01.30"]
[EventType "team-tourn"]
[EventCountry "SRB"]
[SourceTitle "playchess.com"]
[Source "ChessBase"]
[SourceQuality "1"]
[WhiteTeam "Hungary"]
[BlackTeam "Turkey"]
[WhiteTeamCountry "HUN"]
[BlackTeamCountry "TUR"]
[TimeControl "40/5400+30:1800+30"]

{[%evp 10,61,56,27,72,62,76,18,42,16,40,4,35,31,61,49,129,27,25,42,33,33,46,50,55,11,57,40,57,31,176,41,70,0,38,0,0,-12,478,482,444,330,473,460,591,557,1222,1166,29984,29985,29992,29993,29998,29999]} 1. e4 {[%emt 0:00:07]} e5 {[%emt 0:00:15]} 2. Nf3 {[%emt 0:00:22]} Nc6 {[%emt 0:00:18]} 3. Bb5 {[%emt 0:00:23]} Nd4 {[%emt 0:00:25]} 4. Nxd4 {[%emt 0:03:00]} exd4 {[%emt 0:00:14]} 5. O-O {[%emt 0:01:40]} c6 {[%emt 0:00:11]} 6. Ba4 {[%emt 0:01:01]} Ne7 {[%emt 0:02:40] C61: Ruy Lopez: Bird's Defence.} 7. d3 {[%emt 0:01:31]} d5 {[%emt 0:00:16]} 8. f4 {[%emt 0:04:28]} ({White should try} 8. c3 $16) 8... g6 {[%emt 0:09:19] The position is equal.} 9. Nd2 {[%emt 0:05:33][%cal Bb1d2,Bd2f3,Bf3g5][%mdl 32]} Bg7 {[%emt 0:03:01] [#]} 10. Nf3 $146 {[%emt 0:04:12]} ({Predecessor:} 10. f5 gxf5 11. Qh5 dxe4 12. Nxe4 Be6 13. Ng5 Bd5 14. Bb3 Bxb3 15. axb3 Qd5 16. Bd2 {1-0 Hegedus,R (1938)-Bona,Z (1838) SVK-chT1W 2122 2021 (5.7)}) 10... Bg4 {[%emt 0:02:44]} 11. h3 {[%emt 0:02:27]} Be6 {[%emt 0:00:13]} 12. Ng5 {[%emt 0:05:00][%cal Of4f5] Black must now prevent f5!} Bd7 {[%emt 0:06:24] [#]} (12... Qd7 $14) 13. Bd2 {[%emt 0:09:00] White is more active.} (13. f5 $1 $16 {[%cal Rf5g6]} f6 14. exd5) 13... O-O {[%emt 0:02:40]} 14. Bb3 {[%emt 0:01:50][%cal Of4f5]} h6 {[%emt 0:01:03]} 15. Nf3 {[%emt 0:00:38]} dxe4 {[%emt 0:01:25]} 16. dxe4 {[%emt 0:00:41]} c5 {[%emt 0:00:29]} 17. a4 {[%emt 0:02:35]} Qc7 {[%emt 0:00:36]} (17... Qb6 $11) 18. Bc4 {[%emt 0:00:29][%cal Of3e5]} b6 {[%emt 0:00:53]} 19. Nh4 {[%emt 0:01:44]} (19. Ne5 {seems wilder.} Bxe5 20. fxe5 Qxe5 21. Bxh6 Qxe4 22. Qf3) 19... Bf6 {[%emt 0:09:35] [#]} (19... Be6 $14 20. Bxe6 fxe6) 20. Qe1 {[%emt 0:02:19]} (20. Nxg6 $1 $18 Nxg6 21. Qh5) 20... Bc6 {[%emt 0:05:10]} 21. f5 {[%emt 0:04:17]} ({White should play} 21. e5 $14 Bxh4 22. Qxh4) 21... g5 {[%emt 0:02:08]} (21... Kh7 $5 {[%cal Rg6g5]}) 22. Ng6 {[%emt 0:03:20] Inhibits Nc8.} (22. Qe2 {simplifies} Kh7 23. Nf3 Ng8 24. h4) 22... Rfe8 {[%emt 0:00:09] ...Nc8 is the strong threat.} 23. e5 {[%emt 0:00:28]} Nxg6 $2 {[%emt 0:00:36][%mdl 8192]} (23... Nd5 $11 {and Black has nothing to worry.} 24. Qd1 Bxe5 25. Nxe5 Qxe5) 24. fxg6 $18 {[%emt 0:02:23]} Rxe5 {[%emt 0:03:39]} 25. Qg3 {[%emt 0:04:44]} (25. gxf7+ Kg7 26. Qg3 (26. Qf2 Qe7 $16) 26... Re7 $16) 25... Qe7 {[%emt 0:03:03] [#]} (25... Qd6 $142 26. gxf7+ (26. Bxf7+ Kg7 $11) 26... Kf8) 26. Bf4 $1 {[%emt 0:05:22][%mdl 576] Back Rank, Promotion} Kh8 {[%emt 0:06:12]} (26... gxf4 $2 {is a self mate.} 27. gxf7+ Kh8 28. Qg8+) (26... Rd8 27. Bxe5) 27. Bxe5 {[%emt 0:01:25]} Bxe5 {[%emt 0:00:02]} 28. Rae1 {[%emt 0:04:24]} f6 {[%emt 0:00:17] [#]} 29. Rxe5 $1 {[%emt 0:00:19][%mdl 512] White mates.} fxe5 {[%emt 0:23:14] Black is weak on the light squares} (29... Qg7 30. Re6) 30. Rf7 {[%emt 0:00:21]} Re8 {[%emt 0:01:12] [#]} 31. Qxe5+ $3 {[%emt 0:00:30][%mdl 512] Beautiful play by Paal-Szucs!   Weighted Error Value: White=0.35/Black=0.82} 1-0

[Event "1st FIDE Olympiad DIS 2023"]
[Site "Belgrade"]
[Date "2023.01.30"]
[Round "1.20"]
[White "Saltik, Suleyman"]
[Black "Acs, Gabor"]
[Result "1-0"]
[ECO "C56"]
[WhiteElo "1687"]
[BlackElo "2101"]
[Annotator "TA"]
[PlyCount "57"]
[EventDate "2023.01.30"]
[EventType "team-tourn"]
[EventCountry "SRB"]
[SourceTitle "playchess.com"]
[Source "ChessBase"]
[SourceQuality "1"]
[WhiteTeam "Turkey"]
[BlackTeam "Hungary"]
[WhiteTeamCountry "TUR"]
[BlackTeamCountry "HUN"]
[TimeControl "40/5400+30:1800+30"]

{[%evp 21,57,0,0,-47,20,0,42,35,107,113,111,118,93,98,104,64,61,22,14,0,46,12,126,132,185,139,137,132,792,793,796,795,860,824,818,804,1302,1079]} 1. e4 {[%emt 0:00:05]} e5 {[%emt 0:00:32]} 2. Nf3 {[%emt 0:00:09]} Nc6 {[%emt 0:00:06]} 3. d4 {[%emt 0:00:58]} exd4 {[%emt 0:00:43]} 4. Bc4 {[%emt 0:00:19]} Nf6 {[%emt 0:00:34]} 5. e5 {[%emt 0:00:31]} d5 {[%emt 0:00:39]} 6. Bb5 {[%emt 0:00:03]} Ne4 {[%emt 0:01:16]} 7. Nxd4 {[%emt 0:00:46]} Bd7 {[%emt 0:00:34]} 8. Bxc6 {[%emt 0:00:43]} bxc6 {[%emt 0:00:16]} 9. O-O {[%emt 0:00:34]} Bc5 {[%emt 0:02:11]} 10. Be3 {[%emt 0:00:12][%cal Bc1e3,Be3d4,Bd4c5][%mdl 32]} O-O {[%emt 0:04:42]} 11. f3 {[%emt 0:03:22] 11.Nd2 is vanishing.} Ng5 {[%emt 0:00:24] [#]} 12. Qd3 $146 {[%emt 0:09:52] C56: Two Knights: 4 d4 exd4 5 0-0 Nxe4.} (12. f4 $11 {might be stronger.} Ne6 13. c3) ({Predecessor:} 12. Nc3 f6 13. exf6 Qxf6 14. Qd2 Nf7 15. Nb3 Bd6 16. f4 Nh6 17. Bd4 Bxf4 18. Bxf6 Bxd2 19. Nxd2 Rxf6 20. Rxf6 gxf6 {0-1 Jones,G (2702)-Bu,X (2729) Hengshui IMSA blitz 2019 (4)}) 12... Rb8 {[%emt 0:10:33]} ({Black should play} 12... f6 $15 13. Bxg5 fxg5) 13. Nd2 {[%emt 0:10:00]} (13. f4 $5 {[%cal Rf4g5]} Ne4 14. Nd2 $11) 13... Bxd4 {[%emt 0:14:12]} ({Much less strong is} 13... Rxb2 14. N2b3 Bb6 15. Qc3 Rxb3 16. Nxb3 $14 (16. axb3 c5 $11)) (13... f6 $5 {[%cal Rf6e5]}) 14. Bxd4 {[%emt 0:11:21] White is slightly better.} c5 {[%emt 0:11:21]} 15. Bxc5 $16 {[%emt 0:03:14]} Bb5 {[%emt 0:00:13] Black is weak on the dark squares} 16. c4 {[%emt 0:07:25]} dxc4 {[%emt 0:00:14]} 17. Qc3 {[%emt 0:00:43] White has more active pieces. The black rooks are badly placed.} Re8 {[%emt 0:03:19]} 18. Be3 {[%emt 0:09:34]} Ne6 {[%emt 0:03:20]} 19. Bxa7 {[%emt 0:03:31]} Nf4 {[%emt 0:06:48] [#] ...Ne2+ is the strong threat.} 20. Rfe1 {[%emt 0:14:43] Wards off Ne2+} Rb7 {[%emt 0:03:21]} (20... Ra8 $11 {was preferrable.} 21. Be3 Nd3) 21. Bf2 {[%emt 0:03:31]} (21. Be3 $5 {[%cal Re3f4]} Nd5 22. Qd4 $14) 21... Nd3 {[%emt 0:15:51]} (21... Qd3 $1 $11 {remains equal.}) 22. Re4 {[%emt 0:02:16]} Qd5 {[%emt 0:10:03]} (22... c5 $16 {was necessary.}) 23. a4 $36 {[%emt 0:05:50][%mdl 2048] Black is under strong pressure.} ({Resist} 23. Nxc4 $6 Nxf2 24. Kxf2 Bxc4 25. Rxc4 Rxb2+ 26. Qxb2 Qxc4 $16) (23. Rd4 $18 Qxe5 24. a4) 23... Ba6 {[%emt 0:03:18]} 24. Rd4 {[%emt 0:01:07]} Qxe5 {[%emt 0:01:28][%mdl 8192] [#] This move loses the game for Black.} (24... Qe6 $16) 25. Re4 $18 {[%emt 0:00:28] White is clearly winning.} Qxe4 {[%emt 0:01:09]} 26. Nxe4 {[%emt 0:01:04]} Rxb2 {[%emt 0:00:23]} 27. Bd4 {[%emt 0:03:02]} Reb8 {[%emt 0:01:08]} 28. h4 {[%emt 0:01:04]} (28. Bxg7 $2 {perishes.} Rb1+ $19) 28... f5 {[%emt 0:05:15]} 29. Nd2 {[%emt 0:02:39] Weighted Error Value: White=0.21 (precise) /Black=0.35} 1-0